bitfinex/quotes_BTCUSD_20250713
["timestamp","ask_amount","ask_price","bid_price","bid_amount"]
[1752404434817,0.02928241,117580.0,117560.0,0.0308]
[1752404435151,0.03028241,117580.0,117560.0,0.0308]
[1752404435337,0.03028241,117580.0,117570.0,0.20372]
[1752404435672,0.03028241,117580.0,117570.0,0.45996]
[1752404436497,0.02928241,117580.0,117570.0,0.45996]
[1752404436916,0.03128241,117580.0,117570.0,0.45996]
[1752404437630,0.03228241,117580.0,117570.0,0.45996]
[1752404438289,0.03128241,117580.0,117570.0,0.45996]
[1752404438520,0.03328241,117580.0,117570.0,0.45996]
[1752404440204,0.02309519,117580.0,117570.0,0.45996]
[1752404440418,0.02511519,117580.0,117570.0,0.46198]
[1752404440635,0.01716837,117580.0,117570.0,0.46198]
[1752404440848,0.02511501,117580.0,117570.0,0.46198]
[1752404441712,0.02833501,117580.0,117570.0,0.20372]
[1752404443279,0.04473501,117580.0,117570.0,0.45996]
[1752404443722,0.04473499,117580.0,117570.0,0.45996]
[1752404445259,0.04473499,117580.0,117570.0,0.56588]
[1752404445452,0.04473499,117580.0,117550.0,0.13525835]
[1752404445663,0.04473499,117580.0,117570.0,0.20372]
[1752404447209,0.04273499,117580.0,117570.0,0.45992]
[1752404447636,0.04273499,117580.0,117550.0,0.13525835]
[1752404448454,0.04473499,117580.0,117550.0,0.13525835]
[1752404448732,0.04473499,117580.0,117560.0,0.0153]
[1752404448944,0.04273499,117580.0,117560.0,0.0153]
[1752404449365,0.03478837,117580.0,117560.0,0.0153]
[1752404449612,0.04273498,117580.0,117570.0,0.2562]
[1752404450242,0.02260117,117580.0,117570.0,0.2562]
[1752404450454,0.0295866,117580.0,117570.0,0.2562]
[1752404451253,0.0305866,117580.0,117570.0,0.2562]
[1752404451681,0.0315866,117580.0,117570.0,0.2562]
[1752404452104,0.0335866,117580.0,117570.0,0.2562]
[1752404453656,0.0335866,117580.0,117560.0,0.00426387]
[1752404453865,0.0495866,117580.0,117560.0,0.00426387]
[1752404454582,0.0475866,117580.0,117560.0,0.00426387]
[1752404455000,0.0465866,117580.0,117560.0,0.00426387]
[1752404455186,0.0475866,117580.0,117570.0,0.56584]
[1752404455496,0.0099466,117580.0,117570.0,0.30964]
[1752404455720,0.0099466,117580.0,117570.0,0.20372]
[1752404456134,0.00056343,117580.0,117570.0,0.22012]
[1752404456688,0.00056343,117580.0,117570.0,0.23642]
[1752404457399,0.00256343,117580.0,117570.0,0.49262]
[1752404457801,0.00256343,117580.0,117570.0,0.57804993]
[1752404458329,0.00056343,117580.0,117570.0,0.57804993]
[1752404458612,0.01859639,117590.0,117570.0,0.57804993]
[1752404458828,0.01859639,117590.0,117580.0,0.00212621]
[1752404459036,0.02181639,117590.0,117580.0,0.00212621]
[1752404459778,0.02181639,117590.0,117570.0,0.56164993]
[1752404459898,0.02281639,117590.0,117580.0,0.00106226]
[1752404460099,0.0126304,117590.0,117580.0,0.00106226]
[1752404462253,0.0126304,117590.0,117580.0,0.0256612]
[1752404463089,0.0306504,117590.0,117570.0,0.54534993]
[1752404463828,0.0306504,117590.0,117570.0,0.07991253]
[1752404465125,0.0306504,117590.0,117570.0,0.10457428]
[1752404465327,0.0306504,117590.0,117580.0,0.5658]
[1752404465785,0.0296504,117590.0,117580.0,0.20372]
[1752404466650,0.0306504,117590.0,117580.0,0.20372]
[1752404467254,0.0316504,117590.0,117580.0,0.45988]
[1752404468085,0.03958384,117590.0,117580.0,0.45988]
[1752404468707,0.03958355,117590.0,117580.0,0.45988]
[1752404470358,0.02939758,117590.0,117580.0,0.45988]
[1752404471406,0.02939758,117590.0,117580.0,0.46191]
[1752404471616,0.02939758,117590.0,117570.0,0.10457428]
[1752404471754,0.02939758,117590.0,117570.0,0.11977428]
[1752404472178,0.01137758,117590.0,117580.0,0.00106245]
[1752404472386,0.01343758,117590.0,117580.0,0.00106245]
[1752404472576,0.01243758,117590.0,117580.0,0.00106245]
[1752404472982,0.01143758,117590.0,117580.0,0.00106245]
[1752404473201,0.00937758,117590.0,117580.0,0.25738245]
[1752404473382,0.01143758,117590.0,117580.0,0.25632]
[1752404473601,0.02783758,117590.0,117580.0,0.25632]
[1752404473807,0.02883758,117590.0,117580.0,0.25632]
[1752404474606,0.0288397,117590.0,117580.0,0.25632]
[1752404475158,0.0288397,117590.0,117580.0,0.36224]
[1752404475366,0.0288397,117590.0,117580.0,0.56592]
[1752404475574,0.0288397,117590.0,117580.0,0.10592]
[1752404475785,0.0288397,117590.0,117580.0,0.31066226]
[1752404476011,0.0288397,117590.0,117580.0,0.3096]
[1752404476746,0.0453397,117590.0,117580.0,0.3096]
[1752404477279,0.0453397,117590.0,117580.0,0.56592]
[1752404477495,0.04534302,117590.0,117580.0,0.56592]
[1752404477721,0.04534302,117590.0,117580.0,0.20368]
[1752404478755,0.04534302,117590.0,117570.0,0.13547428]
[1752404479037,0.04534302,117590.0,117580.0,0.00106245]
[1752404479449,0.04534302,117590.0,117580.0,0.25734245]
[1752404479678,0.04334302,117590.0,117580.0,0.25628]
[1752404480311,0.03315713,117590.0,117580.0,0.25831]
[1752404480516,0.02443859,117590.0,117580.0,0.25831]
[1752404483156,0.0165,117590.0,117580.0,0.25831]
[1752404483451,0.02444429,117590.0,117580.0,0.25831]
[1752404483874,0.02444429,117590.0,117570.0,0.13547428]
[1752404484090,0.02765442,117590.0,117580.0,0.00230245]
[1752404484300,0.02971442,117590.0,117580.0,0.00230245]
[1752404485266,0.02971442,117590.0,117580.0,0.56818245]
[1752404485469,0.02971442,117590.0,117580.0,0.56712]
[1752404485743,0.02871442,117590.0,117580.0,0.3096]
[1752404486606,0.03071442,117590.0,117580.0,0.3096]
[1752404487623,0.03071442,117590.0,117580.0,0.56584]
[1752404489118,0.01315442,117590.0,117580.0,0.56584]
[1752404489343,0.01316215,117590.0,117580.0,0.56584]
[1752404489771,0.01316215,117590.0,117580.0,0.20368]
[1752404490206,0.01316215,117590.0,117580.0,0.23498]
[1752404490207,0.00995215,117590.0,117580.0,0.23498]
[1752404490416,0.03671,117610.0,117580.0,0.23498]
[1752404490626,0.00321,117600.0,117590.0,0.00106181]
[1752404491587,0.00321,117600.0,117590.0,0.25742181]
[1752404491798,0.00321,117600.0,117590.0,0.25636]
[1752404493854,0.00321,117600.0,117580.0,0.02578326]
[1752404494063,0.00321,117600.0,117590.0,0.00106199]
[1752404495208,0.00321,117600.0,117590.0,0.31066199]
[1752404495402,0.00321,117600.0,117590.0,0.3096]
[1752404497570,0.0366096,117610.0,117590.0,0.56596]
[1752404500303,0.02642489,117610.0,117590.0,0.56596]
[1752404500526,0.0190096,117610.0,117590.0,0.58136]
[1752404502358,0.0269501,117610.0,117590.0,0.58136]
[1752404502781,0.0269501,117610.0,117600.0,0.00106153]
[1752404502999,0.0289201,117610.0,117590.0,0.58136]
[1752404504032,0.0445201,117610.0,117590.0,0.58136]
[1752404505333,0.0465201,117610.0,117590.0,0.58136]
[1752404505506,0.0455201,117610.0,117590.0,0.58136]
[1752404505717,0.0455201,117610.0,117600.0,0.30956]
[1752404505917,0.0445201,117610.0,117600.0,0.30956]
[1752404506309,0.0365796,117610.0,117600.0,0.30956]
[1752404506513,0.04451956,117610.0,117600.0,0.30956]
[1752404507049,0.04651956,117610.0,117600.0,0.56596]
[1752404508851,0.04651956,117610.0,117600.0,0.20368]
[1752404509056,0.04651956,117610.0,117580.0,0.49351255]
[1752404509269,0.04651971,117610.0,117580.0,0.49351255]
[1752404509905,0.04451971,117610.0,117580.0,0.49351255]
[1752404510183,0.04451971,117610.0,117590.0,0.273]
[1752404510394,0.04551971,117610.0,117590.0,0.273]
[1752404510799,0.04451971,117610.0,117590.0,0.273]
[1752404511003,0.04451971,117610.0,117590.0,0.2564]
[1752404515164,0.04451971,117610.0,117600.0,0.30956]
[1752404515788,0.04451971,117610.0,117600.0,0.20368]
[1752404516699,0.04651971,117610.0,117600.0,0.20368]
[1752404516862,0.04751971,117610.0,117600.0,0.20368]
[1752404517064,0.04751971,117610.0,117600.0,0.46008]
[1752404517897,0.04752509,117610.0,117600.0,0.46008]
[1752404518375,0.0395796,117610.0,117600.0,0.46008]
[1752404518569,0.04752662,117610.0,117600.0,0.46008]
[1752404519292,0.04752662,117610.0,117580.0,0.49471255]
[1752404520167,0.04652662,117610.0,117580.0,0.49471255]
[1752404520375,0.04452662,117610.0,117580.0,0.49471255]
[1752404520583,0.04452662,117610.0,117580.0,0.49298199]
[1752404520780,0.04452662,117610.0,117590.0,0.2564]
[1752404521335,0.04452662,117610.0,117580.0,0.49398199]
[1752404522215,0.04452662,117610.0,117590.0,0.00106181]
[1752404522443,0.04452662,117610.0,117590.0,0.01706181]
[1752404522689,0.04452662,117610.0,117590.0,0.00106181]
[1752404523115,0.04452662,117610.0,117600.0,0.2564]
[1752404523832,0.04452662,117610.0,117580.0,0.51720269]
[1752404524384,0.04552662,117610.0,117580.0,0.51720269]
[1752404524805,0.04552662,117610.0,117580.0,0.51620269]
[1752404525269,0.04552662,117610.0,117590.0,0.30956]
[1752404525557,0.0375796,117610.0,117600.0,0.2564]
[1752404525708,0.04553124,117610.0,117600.0,0.30956]
[1752404526124,0.04453124,117610.0,117600.0,0.30956]
[1752404527306,0.04553124,117610.0,117600.0,0.30956]
[1752404527496,0.04553124,117610.0,117600.0,0.20368]
[1752404527779,0.04553124,117610.0,117600.0,0.46008]
[1752404528197,0.04753124,117610.0,117600.0,0.46008]
[1752404528523,0.04753139,117610.0,117600.0,0.46008]
[1752404529317,0.04753139,117610.0,117580.0,0.51620269]
[1752404530159,0.04653139,117610.0,117580.0,0.51620269]
[1752404530494,0.04453139,117610.0,117580.0,0.51720269]
[1752404530824,0.04453139,117610.0,117580.0,0.51820269]
[1752404531337,0.04453139,117610.0,117590.0,0.2564]
[1752404534374,0.0445318,117610.0,117590.0,0.2564]
[1752404534891,0.04453165,117610.0,117600.0,0.00106153]
[1752404535096,0.04453165,117610.0,117590.0,0.2564]
[1752404535308,0.04453165,117610.0,117600.0,0.30952]
[1752404535884,0.04553165,117610.0,117600.0,0.30952]
[1752404537578,0.04753165,117610.0,117600.0,0.56588]
[1752404538868,0.04753165,117610.0,117600.0,0.20364]
[1752404539366,0.04753165,117610.0,117580.0,0.51620269]
[1752404539565,0.04753165,117610.0,117590.0,0.08542993]
[1752404540162,0.04653165,117610.0,117590.0,0.08542993]
[1752404540397,0.04453165,117610.0,117590.0,0.08542993]
[1752404540602,0.04453165,117610.0,117600.0,0.25636]
[1752404541100,0.04453165,117610.0,117590.0,0.08542993]
[1752404541836,0.04653165,117610.0,117590.0,0.08542993]
[1752404542039,0.04453165,117610.0,117590.0,0.08542993]
[1752404542867,0.04553165,117610.0,117590.0,0.08542993]
[1752404543072,0.04553182,117610.0,117600.0,0.25636]
[1752404543274,0.04453182,117610.0,117600.0,0.25636]
[1752404544363,0.04553195,117610.0,117600.0,0.25636]
[1752404544562,0.04753195,117610.0,117600.0,0.25636]
[1752404545309,0.04753195,117610.0,117600.0,0.56588]
[1752404545526,0.04753195,117610.0,117600.0,0.57193983]
[1752404545725,0.04753195,117610.0,117600.0,0.30952]
[1752404546041,0.04753219,117610.0,117600.0,0.30952]
[1752404547163,0.04753219,117610.0,117600.0,0.20364]
[1752404547581,0.04250219,117610.0,117600.0,0.46]
[1752404548010,0.04567219,117610.0,117600.0,0.46]
[1752404548189,0.01100219,117610.0,117600.0,0.46]
[1752404548621,0.03007219,117610.0,117600.0,0.46]
[1752404548738,0.04587219,117610.0,117600.0,0.46]
[1752404549556,0.03568847,117610.0,117600.0,0.46]
[1752404551559,0.03487,117610.0,117600.0,0.46]
[1752404553005,0.03487,117610.0,117590.0,0.14686711]
[1752404553806,0.03487,117610.0,117600.0,0.002]
[1752404554025,0.03487,117610.0,117590.0,0.14686711]
[1752404554338,0.03487,117610.0,117590.0,0.14986711]
[1752404554616,0.03487,117610.0,117590.0,0.14686711]
[1752404554833,0.03487,117610.0,117600.0,0.25648]
[1752404555025,0.03487,117610.0,117600.0,0.25848]
[1752404555332,0.03487,117610.0,117600.0,0.566]
[1752404555794,0.03487,117610.0,117600.0,0.30952]
[1752404557359,0.03487,117610.0,117600.0,0.56596]
[1752404559070,0.03682,117610.0,117600.0,0.56596]
[1752404561083,0.03682,117610.0,117600.0,0.20364]
[1752404561492,0.04476671,117610.0,117600.0,0.20364]
[1752404562593,0.04476671,117610.0,117600.0,0.46008]
[1752404564770,0.03458299,117610.0,117600.0,0.46208]
[1752404564971,0.02569671,117610.0,117600.0,0.46208]
[1752404565195,0.02569671,117610.0,117600.0,0.56796]
[1752404565678,0.02569671,117610.0,117600.0,0.30952]
[1752404566089,0.02569671,117610.0,117600.0,0.31065]
[1752404566823,0.02874671,117610.0,117600.0,0.31065]
[1752404567460,0.02874671,117610.0,117600.0,0.56705]
[1752404567677,0.02874689,117610.0,117600.0,0.20364]
[1752404568094,0.02617122,117630.0,117600.0,0.20364]
[1752404568326,0.11160115,117630.0,117600.0,0.20564]
[1752404569656,0.11160115,117630.0,117610.0,0.2564]
[1752404569866,0.00195,117620.0,117610.0,0.2564]
[1752404570317,0.005,117620.0,117610.0,0.2564]
[1752404571069,0.007,117620.0,117610.0,0.46004]
[1752404571300,0.0384,117620.0,117610.0,0.46004]
[1752404572538,0.0394,117620.0,117610.0,0.46004]
[1752404574116,0.001,117620.0,117610.0,0.46004]
[1752404574320,0.00295,117620.0,117610.0,0.46004]
[1752404574841,0.00019389,117620.0,117610.0,0.46297]
[1752404575256,0.00019389,117620.0,117610.0,0.56885]
[1752404575678,0.00019389,117620.0,117610.0,0.57085]
[1752404581700,0.12840453,117630.0,117610.0,0.57085]
[1752404581906,0.10909782,117630.0,117610.0,0.57085]
[1752404582122,0.11175445,117630.0,117610.0,0.57085]
[1752404582369,0.13063679,117630.0,117610.0,0.57085]
[1752404582872,0.13163679,117630.0,117610.0,0.57085]
[1752404585006,0.13163679,117630.0,117620.0,0.20364]
[1752404585152,0.13263679,117630.0,117620.0,0.20364]
[1752404585909,0.13163679,117630.0,117620.0,0.20364]
[1752404586725,0.13063679,117630.0,117620.0,0.20364]
[1752404587134,0.13263679,117630.0,117620.0,0.20364]
[1752404587606,0.13463679,117630.0,117620.0,0.20364]
[1752404589872,0.11532996,117630.0,117620.0,0.20364]
[1752404590107,0.09644762,117630.0,117620.0,0.20364]
[1752404591819,0.03705663,117630.0,117620.0,0.20364]
[1752404594205,0.03884663,117630.0,117620.0,0.20364]
[1752404596708,0.02344663,117630.0,117620.0,0.20364]
[1752404597044,0.04268113,117630.0,117620.0,0.20364]
[1752404597687,0.02337431,117630.0,117620.0,0.20364]
[1752404598541,0.02337431,117630.0,117620.0,0.20689]
[1752404601841,0.00958367,117630.0,117620.0,0.20689]
[1752404602292,0.15733441,117640.0,117620.0,0.20689]
[1752404602508,0.01920792,117630.0,117620.0,0.20689]
[1752404602719,0.24276434,117640.0,117630.0,0.20364]
[1752404603587,0.24476434,117640.0,117630.0,0.20364]
[1752404605322,0.24276434,117640.0,117630.0,0.20364]
[1752404605557,0.24476434,117640.0,117630.0,0.20364]
[1752404605802,0.24576434,117640.0,117630.0,0.20364]
[1752404606191,0.26501243,117640.0,117630.0,0.20364]
[1752404607973,0.19694181,117640.0,117630.0,0.20364]
[1752404611486,0.18144181,117640.0,117630.0,0.20364]
[1752404611819,0.16690096,117640.0,117630.0,0.20364]
[1752404616264,0.16690096,117640.0,117630.0,0.20683]
[1752404617243,0.15110096,117640.0,117630.0,0.20683]
[1752404621867,0.13731037,117640.0,117630.0,0.20683]
[1752404626832,0.13731037,117640.0,117630.0,0.22429]
[1752404628210,0.11183537,117640.0,117630.0,0.22429]
[1752404631931,0.09804487,117640.0,117630.0,0.22429]
[1752404641886,0.08425437,117640.0,117630.0,0.22429]
[1752404651826,0.07046388,117640.0,117630.0,0.22429]
[1752404652212,0.07046388,117640.0,117630.0,0.24019]
[1752404661052,0.07046388,117640.0,117630.0,0.22429]
[1752404661884,0.05667342,117640.0,117630.0,0.22429]
[1752404665566,0.05667342,117640.0,117630.0,0.24079]
[1752404668687,0.03742533,117640.0,117630.0,0.24079]
[1752404670227,0.07215121,117640.0,117630.0,0.24079]
[1752404670636,0.03742533,117640.0,117630.0,0.24079]
[1752404672004,0.02363493,117640.0,117630.0,0.24079]
[1752404674502,0.02371927,117640.0,117630.0,0.24079]
[1752404687575,0.00308434,117640.0,117630.0,0.24079]
[1752404689300,0.00083567,117640.0,117630.0,0.24079]
[1752404689526,8.434e-05,117640.0,117630.0,0.24079]
[1752404689730,8.434e-05,117640.0,117630.0,0.27496882]
[1752404691985,0.00158434,117650.0,117630.0,0.27496882]
[1752404692206,0.00158434,117650.0,117640.0,0.28776]
[1752404692409,0.00158434,117650.0,117640.0,0.29291]
[1752404693437,0.00158434,117650.0,117640.0,0.29391]
[1752404695110,0.00258434,117650.0,117640.0,0.29391]
[1752404709766,0.00258434,117650.0,117640.0,0.39979]
[1752404719080,0.00250434,117650.0,117640.0,0.39979]
[1752404720327,0.00070878,117650.0,117640.0,0.39979]
[1752404723213,9.163e-05,117650.0,117640.0,0.39979]
[1752404725337,9.163e-05,117650.0,117640.0,0.48521993]
[1752404726149,9.163e-05,117650.0,117640.0,0.48421993]
[1752404726863,0.0024,117670.0,117650.0,0.0317]
[1752404727058,0.0024496,117670.0,117660.0,0.29294]
[1752404729810,0.0034496,117670.0,117660.0,0.29294]
[1752404730013,0.0034496,117670.0,117660.0,0.49654]
[1752404736669,0.0034496,117670.0,117660.0,0.49754]
[1752404740040,0.0034496,117670.0,117660.0,0.60338]
[1752404745960,0.0024496,117670.0,117660.0,0.60338]
[1752404746379,0.0024496,117670.0,117660.0,0.60438]
[1752404747420,0.0024496,117670.0,117660.0,0.60538]
[1752404747832,0.0024496,117670.0,117660.0,0.60638]
[1752404748246,0.0274,117690.0,117660.0,0.58978]
[1752404748481,0.02744959,117690.0,117680.0,0.0154]
[1752404748697,0.02744959,117690.0,117680.0,0.27388]
[1752404748877,0.02744959,117690.0,117680.0,0.27684]
[1752404749868,0.02744959,117690.0,117680.0,0.61684]
[1752404751278,0.02744959,117690.0,117680.0,0.63234]
[1752404753448,0.00878937,117690.0,117680.0,0.63234]
[1752404753668,0.00044959,117690.0,117680.0,0.63234]
[1752404753996,0.00030857,117690.0,117680.0,0.63234]
[1752404754218,0.0004,117700.0,117690.0,0.0157]
[1752404754441,0.0004,117700.0,117690.0,0.01766]
[1752404754663,0.0004,117700.0,117690.0,0.03562]
[1752404755728,0.0044,117700.0,117690.0,0.03562]
[1752404756138,0.0044,117700.0,117690.0,0.37562]
[1752404756370,0.00215999,117710.0,117700.0,0.0307]
[1752404756573,0.00215999,117710.0,117700.0,0.6295]
[1752404756860,0.00215999,117710.0,117700.0,0.63246]
[1752404758138,0.0004,117720.0,117700.0,0.63246]
[1752404758349,0.0004,117720.0,117700.0,0.6295]
[1752404758476,0.0004,117720.0,117710.0,0.00296]
[1752404758688,0.0004,117720.0,117710.0,0.00492]
[1752404760261,0.0164,117720.0,117710.0,0.00296]
[1752404760458,0.0014,117720.0,117710.0,0.00296]
[1752404762230,0.0014,117720.0,117710.0,0.20648]
[1752404764132,0.0014,117720.0,117710.0,0.23151969]
[1752404765627,0.0014,117720.0,117710.0,0.26136057]
[1752404766799,0.08682993,117720.0,117710.0,0.05488057]
[1752404767126,0.13167078,117720.0,117710.0,0.20352]
[1752404768994,0.13167078,117720.0,117710.0,0.23338136]
[1752404769755,0.13167078,117720.0,117710.0,0.672]
[1752404770225,0.15713178,117720.0,117710.0,0.672]
[1752404770671,0.13167078,117720.0,117710.0,0.672]
[1752404771967,0.13167078,117720.0,117710.0,0.7007143]
[1752404777520,0.11667078,117720.0,117710.0,0.7007143]
[1752404778334,0.10137078,117720.0,117710.0,0.7037743]
[1752404780257,0.10137078,117720.0,117710.0,0.7059043]
[1752404780685,0.10137078,117720.0,117710.0,0.7222043]
[1752404781443,0.10137078,117720.0,117710.0,0.7059043]
[1752404782895,0.10137078,117720.0,117710.0,0.7222043]
[1752404784990,0.10137078,117720.0,117710.0,0.7059043]
[1752404792128,0.10137078,117720.0,117710.0,0.7213043]
[1752404794083,0.08682993,117720.0,117710.0,0.7213043]
[1752404797947,0.10137078,117720.0,117710.0,0.3813043]
[1752404799886,0.10137078,117720.0,117710.0,0.7213043]
[1752404814129,0.10137078,117720.0,117710.0,0.7378043]
[1752404818966,0.10137078,117720.0,117710.0,0.7213043]
[1752404819161,0.11717078,117720.0,117710.0,0.7059043]
[1752404819390,0.11717078,117720.0,117710.0,0.7037743]
[1752404819662,0.11717078,117720.0,117710.0,0.7036143]
[1752404819875,0.11717078,117720.0,117710.0,0.7005543]
[1752404820282,0.13217078,117720.0,117710.0,0.7005543]
[1752404820413,0.13217078,117720.0,117710.0,0.5722343]
[1752404821041,0.13217078,117720.0,117710.0,0.7006343]
[1752404822448,0.11717078,117720.0,117710.0,0.7006343]
[1752404823818,0.11717078,117720.0,117710.0,0.7038143]
[1752404826735,0.10137078,117720.0,117710.0,0.7038143]
[1752404830736,0.10137078,117720.0,117710.0,0.7058243]
[1752404831821,0.10137078,117720.0,117710.0,0.7218243]
[1752404842665,0.10137078,117720.0,117710.0,0.7373243]
[1752404844418,0.08682993,117720.0,117710.0,0.7373243]
[1752404855230,0.08682993,117720.0,117710.0,0.70861]
[1752404860546,0.08682993,117720.0,117710.0,0.73424272]
[1752404860763,0.0014,117720.0,117710.0,0.73424272]
[1752404878171,0.0014,117720.0,117710.0,1.03094272]
[1752404880345,0.0014,117720.0,117710.0,0.73424272]
[1752404880555,5.025e-05,117720.0,117710.0,0.73424272]
[1752404881676,5.025e-05,117720.0,117710.0,0.74424272]
[1752404890005,5.025e-05,117720.0,117710.0,1.04094272]
[1752404890498,1.89e-06,117720.0,117710.0,1.04094272]
[1752404895874,1.89e-06,117720.0,117710.0,1.14674272]
[1752404900619,0.1002,117730.0,117720.0,0.34]
[1752404900819,0.10069594,117730.0,117720.0,0.61626]
[1752404901105,0.10069594,117730.0,117720.0,0.63484]
[1752404901492,0.10069594,117730.0,117720.0,0.61924]
[1752404901705,0.10269594,117730.0,117720.0,0.61924]
[1752404902696,0.10269594,117730.0,117720.0,0.63484]
[1752404903580,0.10369594,117730.0,117720.0,0.63484]
[1752404905437,0.10369594,117730.0,117720.0,0.82272]
[1752404906277,0.10369594,117730.0,117720.0,0.83882]
[1752404908046,0.10369594,117730.0,117720.0,0.82272]
[1752404910798,0.0935202,117730.0,117720.0,0.82272]
[1752404928720,0.0935202,117730.0,117720.0,0.83872]
[1752404929357,0.0935202,117730.0,117720.0,0.82272]
[1752404930911,0.17895013,117730.0,117720.0,0.80622]
[1752404935187,0.17895013,117730.0,117720.0,0.82272]
[1752404956475,0.17895013,117730.0,117720.0,0.83772]
[1752404957549,0.17895013,117730.0,117720.0,0.58]
[1752404957760,0.17895013,117730.0,117720.0,0.7088]
[1752404960098,0.17895013,117730.0,117720.0,0.58]
[1752404960305,0.17895013,117730.0,117720.0,0.70876]
[1752404961038,0.17895013,117730.0,117720.0,0.58]
[1752404961265,0.17895013,117730.0,117720.0,0.70876]
[1752404961603,0.17895013,117730.0,117720.0,0.58]
[1752404962242,0.17895013,117730.0,117720.0,0.70876]
[1752404979216,0.16877446,117730.0,117720.0,0.70876]
[1752404992351,0.15859884,117730.0,117720.0,0.70876]
[1752405046874,0.15859884,117730.0,117720.0,0.36876]
[1752405049358,0.15859884,117730.0,117720.0,0.70876]
[1752405059784,0.14842302,117730.0,117720.0,0.70876]
[1752405064583,0.14842302,117730.0,117720.0,0.54646]
[1752405064820,0.16452302,117730.0,117720.0,0.67204]
[1752405065749,0.18042302,117730.0,117720.0,0.67204]
[1752405066912,0.18042302,117730.0,117720.0,0.54348]
[1752405067098,0.18042302,117730.0,117720.0,0.67208]
[1752405070813,0.16452302,117730.0,117720.0,0.67208]
[1752405074801,0.14842302,117730.0,117720.0,0.67523]
[1752405081741,0.14842302,117730.0,117720.0,0.67728]
[1752405090077,0.14842302,117730.0,117720.0,0.69238]
[1752405105907,0.14842302,117730.0,117720.0,0.70778]
[1752405121397,0.1382472,117730.0,117720.0,0.70778]
[1752405127100,0.14056932,117730.0,117720.0,0.70778]
[1752405209567,0.05513939,117730.0,117720.0,0.70778]
[1752405211623,0.05213939,117730.0,117720.0,0.70778]
[1752405212055,0.05313939,117730.0,117720.0,0.70778]
[1752405212692,0.04296383,117730.0,117720.0,0.70778]
[1752405212905,0.04196383,117730.0,117720.0,0.70778]
[1752405213333,0.04296383,117730.0,117720.0,0.70778]
[1752405225372,0.0327891,117730.0,117720.0,0.70778]
[1752405238446,0.02261437,117730.0,117720.0,0.70778]
[1752405248309,0.01243953,117730.0,117720.0,0.70778]
[1752405292719,0.00396161,117730.0,117720.0,0.70778]
[1752405300614,0.0005375,117730.0,117720.0,0.70778]
[1752405318703,6.101e-05,117730.0,117720.0,0.70778]
[1752405323133,6.101e-05,117730.0,117720.0,0.81358]
[1752405326661,0.0002,117740.0,117720.0,0.47358]
[1752405326870,0.0856795,117740.0,117730.0,0.2598435]
[1752405327084,0.00024957,117740.0,117730.0,0.27706]
[1752405327263,0.00024957,117740.0,117730.0,0.27913]
[1752405327674,0.00024957,117740.0,117730.0,0.48261]
[1752405328231,0.00024957,117740.0,117730.0,0.82261]
[1752405328459,0.0022,117750.0,117740.0,0.0163]
[1752405328661,0.0022,117750.0,117740.0,0.29637332]
[1752405328861,0.0002,117760.0,117750.0,0.3561]
[1752405329067,0.0002,117760.0,117750.0,0.61617]
[1752405329270,0.0002,117760.0,117750.0,0.61921]
[1752405329476,0.0002,117760.0,117750.0,0.63541]
[1752405330337,0.0002,117760.0,117750.0,0.63641]
[1752405331195,0.0022,117770.0,117760.0,0.0161]
[1752405331411,0.00228418,117770.0,117760.0,0.63465296]
[1752405331643,0.00228418,117770.0,117760.0,0.63557]
[1752405332819,0.00328418,117770.0,117760.0,0.63557]
[1752405335181,0.00328418,117770.0,117760.0,0.66075477]
[1752405336347,0.00328418,117770.0,117760.0,0.67207271]
[1752405339807,0.0002,117780.0,117770.0,0.3713]
[1752405340027,0.0002,117780.0,117770.0,0.37346]
[1752405340247,0.0022,117790.0,117780.0,0.0151]
[1752405340500,0.0022,117790.0,117780.0,0.2783]
[1752405340716,0.0022,117790.0,117780.0,0.28138]
[1752405341931,0.0022,117790.0,117780.0,0.29758]
[1752405342772,0.0032,117790.0,117780.0,0.29758]
[1752405343204,0.0022,117790.0,117780.0,0.29758]
[1752405343429,0.0032,117790.0,117780.0,0.29958]
[1752405344115,0.0032,117790.0,117780.0,0.30158]
[1752405344355,0.0022,117790.0,117780.0,0.30158]
[1752405345267,0.002,117810.0,117790.0,0.015]
[1752405345467,0.0875786,117810.0,117800.0,0.49954224]
[1752405345718,0.0875786,117810.0,117800.0,0.5005]
[1752405346566,0.0875786,117810.0,117800.0,0.4854]
[1752405347055,0.0895786,117810.0,117800.0,0.4854]
[1752405350754,0.0895786,117810.0,117800.0,0.4704]
[1752405350969,0.1049786,117810.0,117800.0,0.4704]
[1752405351299,0.1049786,117810.0,117800.0,0.46516]
[1752405351536,0.1203786,117810.0,117800.0,0.46516]
[1752405354893,0.1203786,117810.0,117800.0,0.2034]
[1752405355113,0.1203786,117810.0,117800.0,0.33436]
[1752405359199,0.13491945,117810.0,117800.0,0.2034]
[1752405359413,0.13491945,117810.0,117800.0,0.33436]
[1752405361114,0.47491945,117810.0,117800.0,0.33436]
[1752405361544,0.47391945,117810.0,117800.0,0.33436]
[1752405361757,0.47591945,117810.0,117800.0,0.33436]
[1752405361989,0.535056,117810.0,117800.0,0.33436]
[1752405362206,0.537056,117810.0,117800.0,0.33436]
[1752405362739,0.535056,117810.0,117800.0,0.33436]
[1752405363095,0.47791945,117810.0,117800.0,0.33436]
[1752405364438,0.50336745,117810.0,117800.0,0.33436]
[1752405364846,0.50636745,117810.0,117800.0,0.33436]
[1752405365204,0.16636745,117810.0,117800.0,0.33436]
[1752405366186,0.28165075,117810.0,117800.0,0.33436]
[1752405366400,0.27784068,117810.0,117800.0,0.33436]
[1752405366915,0.19241075,117810.0,117800.0,0.33436]
[1752405369147,0.19241075,117810.0,117800.0,0.33412]
[1752405374247,0.16636745,117810.0,117800.0,0.33412]
[1752405375066,0.15096745,117810.0,117800.0,0.33412]
[1752405381325,0.15096745,117810.0,117800.0,0.2034]
[1752405381522,0.25149738,117810.0,117800.0,0.2034]
[1752405381700,0.55606745,117810.0,117800.0,0.2034]
[1752405381910,0.55606745,117810.0,117800.0,0.33384]
[1752405384399,0.58177919,117810.0,117800.0,0.33384]
[1752405384868,0.58177919,117810.0,117800.0,0.2034]
[1752405385087,0.58177919,117810.0,117800.0,0.33396]
[1752405389521,0.58177919,117810.0,117800.0,0.2034]
[1752405389725,0.58177919,117810.0,117800.0,0.33384]
[1752405397540,0.00061313,117800.0,117790.0,0.20344]